fUSD/lending_fUSD_20250512
["ID","MTS","AMOUNT","RATE_DAILY","PERIOD"]
[360852725,1747075839410,-579.47,0.00013698,2]
[360852726,1747075839419,-1074.84,0.00013698,2]
[360852727,1747075839428,-400.0,0.00013698,2]
[360852728,1747075839438,-400.0,0.00013698,2]
[360852729,1747075839447,-1324.65,0.00013698,2]
[360852730,1747075839463,-1324.65,0.00013698,2]
[360852731,1747075839472,-400.0,0.00013698,2]
[360852732,1747075839482,-400.0,0.00013698,2]
[360852733,1747075839492,-400.0,0.00013698,2]
[360852734,1747075839501,-400.0,0.00013698,2]
[360852735,1747075839510,-400.0,0.00013698,2]
[360852736,1747075839520,-400.0,0.00013698,2]
[360852737,1747075839529,-400.0,0.00013698,2]
[360852738,1747075839538,-400.0,0.00013698,2]
[360852739,1747075839548,-400.0,0.00013698,2]
[360852740,1747075839557,-400.0,0.00013698,2]
[360852741,1747075839567,-500.0,0.00013698,2]
[360852742,1747075839576,-400.0,0.00013698,2]
[360852743,1747075839586,-400.0,0.00013698,2]
[360852744,1747075839597,-400.0,0.00013698,2]
[360852745,1747075839607,-400.0,0.00013698,2]
[360852746,1747075839617,-400.0,0.00013698,2]
[360852747,1747075839627,-400.0,0.00013698,2]
[360852748,1747075839637,-250.0,0.00013698,2]
[360852749,1747075839647,-663.11,0.00013698,2]
[360852750,1747075839656,-920.94,0.00013698,2]
[360852751,1747075839666,-721.78,0.00013698,2]
[360852752,1747075839677,-450.0,0.00013698,2]
[360852753,1747075839686,-400.0,0.00013698,2]
[360852754,1747075839696,-400.0,0.00013698,2]
[360852755,1747075839706,-400.0,0.00013698,2]
[360852756,1747075839721,-400.0,0.00013698,2]
[360852757,1747075839730,-400.0,0.00013698,2]
[360852758,1747075839740,-450.53,0.00013698,2]
[360852759,1747075839750,-400.0,0.00013698,2]
[360852760,1747075839760,-400.0,0.00013698,2]
[360852761,1747075839770,-400.0,0.00013698,2]
[360852762,1747075839780,-400.0,0.00013698,2]
[360852763,1747075839790,-678.29,0.00013698,2]
[360852764,1747075839799,-400.0,0.00013698,2]
[360852765,1747075839809,-151.0,0.00013699,2]
[360852766,1747075839818,-200.0,0.00013699,2]
[360852767,1747075839829,-412.51,0.00013699,2]
[360852768,1747075839838,-512.16,0.00013699,2]
[360852769,1747075839848,-172.87,0.00013699,2]
[360852770,1747075839857,-1033.0,0.000137,2]
[360852771,1747075839867,-1000.0,0.000137,2]
[360852772,1747075839877,-1000.0,0.000137,2]
[360852773,1747075839886,-1000.0,0.000137,2]
[360852774,1747075839896,-1000.0,0.000137,2]
[360852775,1747075839905,-1000.0,0.000137,2]
[360852777,1747075839914,-1000.0,0.000137,2]
[360852779,1747075839924,-1000.0,0.000137,2]
[360852781,1747075839933,-1000.0,0.000137,2]
[360852783,1747075839942,-1000.0,0.000137,2]
[360852785,1747075839953,-1000.0,0.000137,2]
[360852787,1747075839967,-957.0,0.000137,2]
[360852789,1747075839976,-1000.0,0.000137,2]
[360852791,1747075839985,-1000.0,0.000137,2]
[360852793,1747075839994,-1002.0,0.000137,2]
[360852795,1747075840004,-1687.8,0.000137,2]
[360852797,1747075840013,-437.32434528,0.00013708,2]
[360852798,1747075840023,-150.0,0.00013727,2]
[360852800,1747075840032,-84888.3700339,0.0001373,2]
[360852801,1747075840042,-120344.76517868,0.0001373,2]
[360852802,1747075840052,-2074.630365,0.0001373,2]
[360852803,1747075840062,-2074.630365,0.0001373,2]
[360852804,1747075840071,-260.64405714,0.0001373,2]
[360852805,1747075840081,-151.0,0.0001373,2]
[360852806,1747075840090,-1324.65,0.00013737,2]
[360852807,1747075840099,-930.0,0.00013738,2]
[360852808,1747075840111,-1304.0,0.00013738,2]
[360852809,1747075840121,-350.706,0.00013738,2]
[360852810,1747075840131,-798.0,0.00013738,2]
[360852811,1747075840140,-1146.0,0.00013738,2]
[360852812,1747075840150,-5939.0,0.00013738,2]
[360852813,1747075840160,-552.0,0.00013738,2]
[360852814,1747075840170,-584.0,0.00013738,2]
[360852815,1747075840181,-1456.0,0.00013738,2]
[360852818,1747075840190,-918.0,0.00013738,2]
[360852819,1747075840200,-1249.0,0.00013738,2]
[360852820,1747075840213,-6818.0,0.00013738,2]
[360852821,1747075840222,-150.0,0.00013738,2]
[360852822,1747075840232,-879.0,0.00013738,2]
[360852823,1747075840242,-4029.0,0.00013738,2]
[360852824,1747075840252,-154.0,0.00013738,2]
[360852825,1747075840262,-932.2769277,0.00013738,2]
[360852826,1747075840272,-250.0,0.00013742,2]
[360852827,1747075840282,-150.0,0.00013748,2]
[360852828,1747075840292,-236.01514278,0.00013748,2]
[360852829,1747075840302,-339.96870087,0.00013752,2]
[360852830,1747075840311,-500.0,0.00013752,2]
[360852831,1747075840321,-500.0,0.00013752,2]
[360852832,1747075840330,-500.0,0.00013752,2]
[360852833,1747075840340,-500.0,0.00013752,2]
[360852834,1747075840350,-1324.65,0.00013752,2]
[360852835,1747075840359,-500.0,0.00013752,2]
[360852836,1747075840369,-300.0,0.00013752,2]
[360852837,1747075840379,-295.07623327,0.00013753,2]
[360852838,1747075840388,-151.0,0.00013753,2]
[360852839,1747075840398,-151.0,0.00013753,2]
[360852840,1747075840407,-151.0,0.00013753,2]
[360852841,1747075840417,-178.582981,0.00013753,2]
[360852842,1747075840427,-178.582981,0.00013753,2]
[360852843,1747075840437,-178.582981,0.00013753,2]
[360852844,1747075840447,-200.0,0.00013753,2]
[360852845,1747075840457,-400.0,0.00013753,2]
[360852846,1747075840472,-400.0,0.00013753,2]
[360852847,1747075840481,-400.0,0.00013753,2]
[360852848,1747075840491,-400.0,0.00013753,2]
[360852849,1747075840500,-395.76,0.00013753,2]
[360852850,1747075840510,-987.88,0.00013753,2]
[360852851,1747075840519,-400.0,0.00013753,2]
[360852852,1747075840528,-221.21,0.00013753,2]
[360852853,1747075840539,-400.0,0.00013753,2]
[360852854,1747075840548,-400.0,0.00013753,2]
[360852855,1747075840558,-400.0,0.00013753,2]
[360852856,1747075840568,-400.0,0.00013753,2]
[360852857,1747075840577,-400.0,0.00013753,2]
[360852858,1747075840588,-400.0,0.00013753,2]
[360852859,1747075840602,-400.0,0.00013753,2]
[360852860,1747075840612,-400.0,0.00013753,2]
[360852861,1747075840621,-400.0,0.00013753,2]
[360852862,1747075840631,-400.0,0.00013753,2]
[360852863,1747075840642,-1000.0,0.00013753,2]
[360852864,1747075840652,-400.0,0.00013753,2]
[360852865,1747075840661,-400.0,0.00013753,2]
[360852866,1747075840671,-400.0,0.00013753,2]
[360852867,1747075840680,-400.0,0.00013753,2]
[360852868,1747075840690,-400.0,0.00013753,2]
[360852869,1747075840700,-400.0,0.00013753,2]
[360852870,1747075840715,-400.0,0.00013753,2]
[360852871,1747075840724,-400.0,0.00013753,2]
[360852872,1747075840733,-400.0,0.00013753,2]
[360852873,1747075840743,-400.0,0.00013753,2]
[360852874,1747075840753,-400.0,0.00013753,2]
[360852875,1747075840762,-400.0,0.00013753,2]
[360852876,1747075840772,-528.63,0.00013753,2]
[360852877,1747075840781,-1550.47,0.00013753,2]
[360852878,1747075840792,-400.0,0.00013753,2]
[360852880,1747075840802,-400.0,0.00013753,2]
[360852881,1747075840811,-200.0,0.00013753,2]
[360852883,1747075840822,-400.0,0.00013753,2]
[360852884,1747075840832,-400.0,0.00013753,2]
[360852885,1747075840842,-416.02,0.00013753,2]
[360852886,1747075840851,-649.27,0.00013753,2]
[360852887,1747075840861,-400.0,0.00013753,2]
[360852888,1747075840871,-400.0,0.00013753,2]
[360852889,1747075840880,-400.0,0.00013753,2]
[360852890,1747075840889,-625.67,0.00013753,2]
[360852891,1747075840899,-400.0,0.00013753,2]
[360852892,1747075840908,-400.0,0.00013753,2]
[360852893,1747075840917,-400.0,0.00013753,2]
[360852894,1747075840927,-400.0,0.00013753,2]
[360852895,1747075840936,-400.0,0.00013753,2]
[360852896,1747075840945,-1310.75,0.00013753,2]
[360852898,1747075840955,-400.0,0.00013753,2]
[360852900,1747075840969,-400.0,0.00013753,2]
[360852901,1747075840978,-400.0,0.00013753,2]
[360852902,1747075840988,-561.32,0.00013753,2]
[360852903,1747075840998,-2177.6,0.00013753,2]
[360852904,1747075841007,-761.97,0.00013753,2]
[360852905,1747075841017,-400.0,0.00013753,2]
[360852906,1747075841027,-400.0,0.00013753,2]
[360852907,1747075841037,-400.0,0.00013753,2]
[360852908,1747075841047,-1358.5,0.00013753,2]
[360852909,1747075841057,-400.0,0.00013753,2]
[360852910,1747075841066,-400.0,0.00013753,2]
[360852911,1747075841076,-536.07,0.00013753,2]
[360852912,1747075841086,-400.0,0.00013753,2]
[360852913,1747075841096,-400.0,0.00013753,2]
[360852914,1747075841106,-704.13,0.00013753,2]
[360852915,1747075841115,-400.0,0.00013753,2]
[360852916,1747075841125,-400.0,0.00013753,2]
[360852917,1747075841135,-400.0,0.00013753,2]
[360852918,1747075841144,-400.0,0.00013753,2]
[360852919,1747075841153,-998.9,0.00013753,2]
[360852920,1747075841162,-858.49,0.00013753,2]
[360852921,1747075841172,-400.0,0.00013753,2]
[360852922,1747075841182,-653.1,0.00013753,2]
[360852923,1747075841191,-400.0,0.00013753,2]
[360852924,1747075841201,-2820.73,0.00013753,2]
[360852925,1747075841365,-619.84,0.00013753,2]
[360852926,1747075841375,-697.24,0.00013753,2]
[360852927,1747075841384,-480.12,0.00013753,2]
[360852928,1747075841393,-228.66652826,0.00013753,2]
[360852929,1747075841403,-400.0,0.00013753,2]
[360852930,1747075841412,-400.0,0.00013753,2]
[360852931,1747075841422,-400.0,0.00013753,2]
[360852932,1747075841431,-1430.33,0.00013753,2]
[360852933,1747075841440,-400.0,0.00013753,2]
[360852934,1747075841450,-400.0,0.00013753,2]
[360852935,1747075841464,-253.877273,0.00013753,2]
[360852936,1747075841473,-572.78,0.00013753,2]
[360852937,1747075841483,-400.0,0.00013753,2]
[360852938,1747075841492,-400.0,0.00013753,2]
[360852939,1747075841502,-400.0,0.00013753,2]
[360852940,1747075841511,-253.877273,0.00013753,2]
[360852941,1747075841521,-400.0,0.00013753,2]
[360852942,1747075841531,-500.17,0.00013753,2]
[360852943,1747075841540,-731.25,0.00013753,2]
[360852944,1747075841550,-400.0,0.00013753,2]
[360852945,1747075841560,-400.0,0.00013753,2]
[360852946,1747075841570,-824.77,0.00013753,2]
[360852947,1747075841579,-400.0,0.00013753,2]
[360852948,1747075841589,-1613.24,0.00013753,2]
[360852949,1747075841600,-400.0,0.00013753,2]
[360852950,1747075841610,-400.0,0.00013753,2]
[360852951,1747075841621,-400.0,0.00013753,2]
[360852952,1747075841630,-440.88,0.00013753,2]
[360852953,1747075841640,-400.0,0.00013753,2]
[360852954,1747075841650,-505.05,0.00013753,2]
[360852955,1747075841660,-907.83,0.00013753,2]
[360852956,1747075841670,-400.0,0.00013753,2]
[360852957,1747075841680,-170.0,0.00013753,2]
[360852958,1747075841690,-416.68,0.00013753,2]
[360852959,1747075841700,-400.0,0.00013753,2]
[360852960,1747075841714,-400.0,0.00013753,2]
[360852961,1747075841723,-422.84,0.00013753,2]
[360852962,1747075841735,-1458.89,0.00013753,2]
[360852963,1747075841746,-400.0,0.00013753,2]
[360852964,1747075841756,-400.0,0.00013753,2]
[360852965,1747075841766,-400.0,0.00013753,2]
[360852966,1747075841775,-400.0,0.00013753,2]
[360852967,1747075841785,-400.0,0.00013753,2]
[360852968,1747075841795,-400.0,0.00013753,2]
[360852969,1747075841805,-400.0,0.00013753,2]
[360852970,1747075841814,-400.0,0.00013753,2]
[360852971,1747075841824,-491.41,0.00013753,2]
[360852972,1747075841834,-400.0,0.00013753,2]
[360852973,1747075841843,-400.0,0.00013753,2]
[360852974,1747075841853,-400.0,0.00013753,2]
[360852975,1747075841863,-400.0,0.00013753,2]
[360852976,1747075841873,-400.0,0.00013753,2]
[360852977,1747075841883,-400.0,0.00013753,2]
[360852978,1747075841892,-400.0,0.00013753,2]
[360852979,1747075841902,-533.45691826,0.00013753,2]
[360852980,1747075841912,-400.0,0.00013753,2]
[360852981,1747075841922,-400.0,0.00013753,2]
[360852982,1747075841932,-400.0,0.00013753,2]
[360852983,1747075841941,-400.0,0.00013753,2]
[360852984,1747075841951,-151.55344983,0.00013753,2]
[360852985,1747075841967,-151.0,0.00013753,2]
[360852986,1747075841977,-151.0,0.00013753,2]
[360852987,1747075841986,-400.0,0.00013753,2]
[360852988,1747075841996,-400.0,0.00013753,2]
[360852989,1747075842008,-650.22,0.00013753,2]
[360852990,1747075842018,-405.87728089,0.00013753,2]
[360852991,1747075842029,-151.0,0.00013753,2]
[360852992,1747075842038,-151.0,0.00013753,2]
[360852993,1747075842048,-400.0,0.00013753,2]
[360852994,1747075842059,-400.0,0.00013753,2]
[360852995,1747075842070,-400.0,0.00013753,2]
[360852996,1747075842080,-400.0,0.00013753,2]
[360852997,1747075842090,-421.106965,0.00013753,2]
[360852998,1747075842100,-151.0,0.00013753,2]
[360852999,1747075842111,-151.0,0.00013753,2]
[360853000,1747075842121,-400.0,0.00013753,2]
[360853001,1747075842130,-403.35513461,0.00013753,2]
[360853002,1747075842140,-400.0,0.00013753,2]
[360853003,1747075842150,-421.106965,0.00013753,2]
[360853004,1747075842159,-400.0,0.00013753,2]
[360853005,1747075842169,-400.0,0.00013753,2]
[360853006,1747075842179,-400.0,0.00013753,2]
[360853007,1747075842189,-400.0,0.00013753,2]
[360853008,1747075842199,-400.0,0.00013753,2]
[360853009,1747075842213,-400.0,0.00013753,2]
[360853010,1747075842223,-400.0,0.00013753,2]
[360853011,1747075842234,-555.41,0.00013753,2]
[360853012,1747075842245,-400.0,0.00013753,2]
[360853013,1747075842255,-400.0,0.00013753,2]
[360853014,1747075842265,-400.0,0.00013753,2]
[360853015,1747075842275,-400.0,0.00013753,2]
[360853016,1747075842286,-400.0,0.00013753,2]
[360853017,1747075842296,-400.0,0.00013753,2]
[360853018,1747075842305,-400.0,0.00013753,2]
[360853019,1747075842315,-151.0,0.00013753,2]
[360853020,1747075842325,-151.0,0.00013753,2]
[360853021,1747075842335,-400.0,0.00013753,2]
[360853022,1747075842344,-427.35,0.00013753,2]
[360853023,1747075842353,-400.0,0.00013753,2]
[360853024,1747075842363,-400.0,0.00013753,2]
[360853025,1747075842372,-264.18569329,0.00013753,2]
[360853026,1747075842381,-400.0,0.00013753,2]
[360853027,1747075842391,-200.0,0.00013753,2]
[360853028,1747075842400,-400.0,0.00013753,2]
[360853029,1747075842410,-400.0,0.00013753,2]
[360853030,1747075842419,-400.0,0.00013753,2]
[360853031,1747075842428,-400.0,0.00013753,2]
[360853032,1747075842438,-400.0,0.00013753,2]
[360853033,1747075842447,-400.0,0.00013753,2]
[360853034,1747075842457,-400.0,0.00013753,2]
[360853035,1747075842471,-400.0,0.00013753,2]
[360853036,1747075842480,-400.0,0.00013753,2]
[360853037,1747075842490,-470.55,0.00013753,2]
[360853038,1747075842500,-194.35093452,0.00013753,2]
[360853039,1747075842510,-400.0,0.00013753,2]
[360853040,1747075842519,-546.24288208,0.00013753,2]
[360853041,1747075842529,-400.0,0.00013753,2]
[360853042,1747075842538,-400.0,0.00013753,2]
[360853043,1747075842548,-400.0,0.00013753,2]
[360853044,1747075842557,-400.0,0.00013753,2]
[360853045,1747075842567,-400.0,0.00013753,2]
[360853046,1747075842577,-400.0,0.00013753,2]
[360853047,1747075842587,-151.0,0.00013753,2]
[360853048,1747075842600,-151.0,0.00013753,2]
[360853049,1747075842609,-400.0,0.00013753,2]
[360853050,1747075842621,-404.69,0.00013753,2]
[360853051,1747075842630,-400.0,0.00013753,2]
[360853052,1747075842640,-400.0,0.00013753,2]
[360853053,1747075842649,-400.0,0.00013753,2]
[360853054,1747075842659,-400.0,0.00013753,2]
[360853055,1747075842669,-400.0,0.00013753,2]
[360853056,1747075842679,-168.92356915,0.00013753,2]
[360853057,1747075842688,-3279.65,0.00013753,2]
[360853058,1747075842699,-400.0,0.00013753,2]
[360853059,1747075842713,-400.0,0.00013753,2]
[360853060,1747075842724,-242.05770414,0.00013753,2]
[360853061,1747075842734,-400.0,0.00013753,2]
[360853062,1747075842743,-530.28088596,0.00013753,2]
[360853063,1747075842753,-400.0,0.00013753,2]
[360853064,1747075842762,-400.0,0.00013753,2]
[360853065,1747075842772,-400.0,0.00013753,2]
[360853066,1747075842782,-400.0,0.00013753,2]
[360853067,1747075842793,-400.0,0.00013753,2]
[360853068,1747075842803,-400.0,0.00013753,2]
[360853069,1747075842813,-400.0,0.00013753,2]
[360853070,1747075842823,-547.18,0.00013753,2]
[360853071,1747075842833,-400.0,0.00013753,2]
[360853072,1747075842842,-413.99,0.00013753,2]
[360853073,1747075842852,-400.0,0.00013753,2]
[360853074,1747075842862,-469.23653782,0.00013753,2]
[360853075,1747075842871,-400.0,0.00013753,2]
[360853076,1747075842882,-400.0,0.00013753,2]
[360853077,1747075842891,-284.49,0.00013753,2]
[360853078,1747075842902,-400.0,0.00013753,2]
[360853079,1747075842911,-400.0,0.00013753,2]
[360853080,1747075842920,-400.0,0.00013753,2]
[360853081,1747075842929,-400.0,0.00013753,2]
[360853082,1747075842938,-400.0,0.00013753,2]
[360853083,1747075842948,-795.52,0.00013753,2]
[360853084,1747075842958,-400.0,0.00013753,2]
[360853085,1747075842971,-400.0,0.00013753,2]
[360853087,1747075842981,-400.0,0.00013753,2]
[360853089,1747075842991,-400.0,0.00013753,2]
[360853091,1747075842999,-317.7,0.00013753,2]
[360853092,1747075843009,-400.0,0.00013753,2]
[360853093,1747075843018,-400.0,0.00013753,2]
[360853094,1747075843028,-400.0,0.00013753,2]
[360853095,1747075843038,-409.37,0.00013753,2]
[360853097,1747075843048,-400.0,0.00013753,2]
[360853098,1747075843058,-400.0,0.00013753,2]
[360853099,1747075843069,-400.0,0.00013753,2]
[360853100,1747075843078,-400.0,0.00013753,2]
[360853101,1747075843088,-400.0,0.00013753,2]
[360853102,1747075843097,-2074.630365,0.00013753,2]
[360853103,1747075843106,-2074.630365,0.00013753,2]
[360853104,1747075843116,-400.0,0.00013753,2]
[360853105,1747075843125,-400.0,0.00013753,2]
[360853106,1747075843135,-400.0,0.00013753,2]
[360853107,1747075843145,-2074.630365,0.00013753,2]
[360853108,1747075843155,-2074.630365,0.00013753,2]
[360853109,1747075843164,-400.0,0.00013753,2]
[360853110,1747075843173,-400.0,0.00013753,2]
[360853111,1747075843182,-400.0,0.00013753,2]
[360853112,1747075843192,-151.0,0.00013753,2]
[360853113,1747075843202,-400.0,0.00013753,2]
[360853114,1747075843219,-182.093683,0.00013753,2]
[360853115,1747075843229,-400.0,0.00013753,2]
[360853116,1747075843239,-400.0,0.00013753,2]
[360853117,1747075843249,-678.89,0.00013753,2]
[360853118,1747075843260,-400.0,0.00013753,2]
[360853119,1747075843270,-400.0,0.00013753,2]
[360853120,1747075843280,-400.0,0.00013753,2]
[360853121,1747075843290,-151.0,0.00013753,2]
[360853122,1747075843300,-175.53,0.00013753,2]
[360853123,1747075843310,-159.159755,0.00013753,2]
[360853124,1747075843319,-400.0,0.00013753,2]
[360853125,1747075843329,-400.0,0.00013753,2]
[360853126,1747075843340,-400.0,0.00013753,2]
[360853127,1747075843350,-400.0,0.00013753,2]
[360853128,1747075843361,-400.0,0.00013753,2]
[360853129,1747075843371,-400.0,0.00013753,2]
[360853130,1747075843381,-400.0,0.00013753,2]
[360853131,1747075843390,-400.0,0.00013753,2]
[360853132,1747075843400,-400.0,0.00013753,2]
[360853133,1747075843409,-1368.22,0.00013753,2]
[360853134,1747075843419,-400.0,0.00013753,2]
[360853135,1747075843428,-400.0,0.00013753,2]
[360853136,1747075843437,-400.0,0.00013753,2]
[360853137,1747075843446,-400.0,0.00013753,2]
[360853138,1747075843456,-400.0,0.00013753,2]
[360853139,1747075843472,-400.0,0.00013753,2]
[360853140,1747075843481,-631.89,0.00013753,2]
[360853141,1747075843491,-151.0,0.00013753,2]
[360853142,1747075843501,-165.185822,0.00013753,2]
[360853143,1747075843510,-400.0,0.00013753,2]
[360853144,1747075843520,-9258.09,0.00013753,2]
[360853145,1747075843529,-400.0,0.00013753,2]
[360853146,1747075843539,-261.37229277,0.00013753,2]
[360853147,1747075843548,-176.90373263,0.00013753,2]
[360853148,1747075843558,-600.7,0.00013753,2]
[360853149,1747075843567,-400.0,0.00013753,2]
[360853150,1747075843576,-400.0,0.00013753,2]
[360853151,1747075843586,-400.0,0.00013753,2]
[360853152,1747075843597,-400.0,0.00013753,2]
[360853153,1747075843606,-400.0,0.00013753,2]
[360853154,1747075843616,-400.0,0.00013753,2]
[360853155,1747075843628,-400.0,0.00013753,2]
[360853156,1747075843639,-400.0,0.00013753,2]
[360853157,1747075843650,-400.0,0.00013753,2]
[360853158,1747075843659,-400.0,0.00013753,2]
[360853159,1747075843668,-400.0,0.00013753,2]
[360853160,1747075843677,-400.0,0.00013753,2]
[360853161,1747075843686,-400.0,0.00013753,2]
[360853162,1747075843697,-400.0,0.00013753,2]
[360853163,1747075843707,-1737.19,0.00013753,2]
[360853164,1747075843721,-171.18,0.00013753,2]
[360853165,1747075843730,-400.0,0.00013753,2]
[360853166,1747075843739,-400.0,0.00013753,2]
[360853167,1747075843749,-400.0,0.00013753,2]
[360853168,1747075843758,-400.0,0.00013753,2]
[360853169,1747075843767,-400.0,0.00013753,2]
[360853170,1747075843776,-400.0,0.00013753,2]
[360853171,1747075843785,-400.0,0.00013753,2]
[360853172,1747075843794,-400.0,0.00013753,2]
[360853173,1747075843803,-559.94,0.00013753,2]
[360853174,1747075843812,-400.0,0.00013753,2]
[360853175,1747075843822,-400.0,0.00013753,2]
[360853176,1747075843831,-400.0,0.00013753,2]
[360853177,1747075843840,-400.0,0.00013753,2]
[360853178,1747075843850,-400.0,0.00013753,2]
[360853179,1747075843860,-49310.73,0.00013753,2]
[360853180,1747075843870,-400.0,0.00013753,2]
[360853182,1747075843879,-400.0,0.00013753,2]
[360853184,1747075843890,-400.0,0.00013753,2]
[360853185,1747075843899,-400.0,0.00013753,2]
[360853186,1747075843909,-400.0,0.00013753,2]
[360853187,1747075843918,-400.0,0.00013753,2]
[360853188,1747075843927,-400.0,0.00013753,2]
[360853190,1747075843937,-400.0,0.00013753,2]
[360853192,1747075843946,-400.0,0.00013753,2]
[360853195,1747075843955,-927.35,0.00013753,2]
[360853197,1747075843970,-400.0,0.00013753,2]
[360853199,1747075843980,-400.0,0.00013753,2]
[360853201,1747075843989,-400.0,0.00013753,2]
[360853202,1747075843999,-200.0,0.00013753,2]
[360853203,1747075844008,-400.0,0.00013753,2]
[360853205,1747075844018,-400.0,0.00013753,2]
[360853207,1747075844027,-400.0,0.00013753,2]
[360853209,1747075844036,-151.0,0.00013753,2]
[360853211,1747075844046,-1092.75,0.00013753,2]
[360853213,1747075844056,-151.0,0.00013753,2]
[360853215,1747075844065,-400.0,0.00013753,2]
[360853217,1747075844075,-400.0,0.00013753,2]
[360853219,1747075844084,-400.0,0.00013753,2]
[360853222,1747075844094,-400.0,0.00013753,2]
[360853223,1747075844242,-400.0,0.00013753,2]
[360853224,1747075844252,-400.0,0.00013753,2]
[360853225,1747075844261,-400.0,0.00013753,2]
[360853226,1747075844270,-251.70681429,0.00013753,2]
[360853227,1747075844279,-830.96,0.00013753,2]
[360853228,1747075844289,-450.0,0.00013753,2]
[360853229,1747075844299,-252.22639115,0.00013753,2]
[360853230,1747075844309,-400.0,0.00013753,2]
[360853231,1747075844319,-20808.66207389,0.00013753,2]
[360853247,1747075844667,-2092.24745491,0.00013753,2]
[360853248,1747075844679,-511.93572855,0.00013753,2]
[360853249,1747075844698,-1017.49334054,0.00013753,2]
[360853250,1747075844714,-25277.5,0.00013753,2]
[360853251,1747075844725,-2151.62442316,0.00013753,2]
[360853262,1747075846128,-150.0,0.00013584,2]
[360853264,1747075846141,-400.0,0.00013698,2]
[360853267,1747075846155,-400.0,0.00013698,2]
[360853269,1747075846167,-400.0,0.00013698,2]
[360853271,1747075846180,-500.0,0.00013698,2]
[360853274,1747075846195,-836.0,0.00013738,2]
[360853276,1747075846204,-3406.1985283,0.00013753,2]
[360853278,1747075846219,-2494.49999,0.00013753,2]
[360853280,1747075846231,-1418.06,0.00013753,2]
[360853282,1747075846242,-1010.9,0.00013753,2]
[360853284,1747075846254,-13183.55431034,0.00013753,2]
[360853286,1747075846266,-7631.04508113,0.00013753,2]
[360853289,1747075846278,-137.49906918,0.00013753,2]
[360853291,1747075846287,-151.0,0.00013753,2]
[360853293,1747075846297,-333.01901756,0.00013753,2]
[360853295,1747075846310,-66.98098244,0.00013753,2]
[360853297,1747075846321,-151.0,0.00013753,2]
[360853299,1747075846330,-217.45902006,0.00013753,2]
[360853301,1747075846354,-231.08097994,0.00013753,2]
[360853302,1747075846364,-400.0,0.00013753,2]
[360853303,1747075846374,-400.0,0.00013753,2]
[360853304,1747075846384,-687.42,0.00013753,2]
[360853305,1747075846394,-400.0,0.00013753,2]
[360853306,1747075846404,-400.0,0.00013753,2]
[360853307,1747075846413,-400.0,0.00013753,2]
[360853308,1747075846423,-400.0,0.00013753,2]
[360853309,1747075846433,-400.0,0.00013753,2]
[360853310,1747075846761,-400.0,0.00013753,2]
[360853311,1747075846790,-110.08147068,0.00013753,2]